fUST/lending_fUST_20240818
["ID","MTS","AMOUNT","RATE_DAILY","PERIOD"]
[335192353,1723967445098,-500.0,0.00018884,2]
[335192354,1723967445107,-505.68019105,0.00018884,2]
[335192355,1723967445116,-838.42,0.00018884,2]
[335192356,1723967445126,-500.0,0.00018884,2]
[335192357,1723967445135,-932.43,0.00018884,2]
[335192358,1723967445145,-500.0,0.00018884,2]
[335192359,1723967445155,-500.0,0.00018884,2]
[335192360,1723967445164,-500.0,0.00018884,2]
[335192361,1723967445173,-505.24353292,0.00018884,2]
[335192362,1723967445183,-500.0,0.00018884,2]
[335192363,1723967445192,-513.41,0.00018884,2]
[335192364,1723967445202,-500.0,0.00018884,2]
[335192365,1723967445214,-500.0,0.00018884,2]
[335192366,1723967445224,-500.0,0.00018884,2]
[335192367,1723967445234,-510.5141272,0.00018884,2]
[335192368,1723967445244,-505.51210129,0.00018884,2]
[335192369,1723967445254,-500.0,0.00018884,2]
[335192370,1723967445263,-500.0,0.00018884,2]
[335192371,1723967445273,-500.0,0.00018884,2]
[335192372,1723967445282,-509.76833442,0.00018884,2]
[335192373,1723967445291,-500.0,0.00018884,2]
[335192374,1723967445301,-500.0,0.00018884,2]
[335192375,1723967445311,-500.0,0.00018884,2]
[335192376,1723967445320,-500.0,0.00018884,2]
[335192377,1723967445330,-500.0,0.00018884,2]
[335192378,1723967445339,-500.0,0.00018884,2]
[335192379,1723967445349,-500.0,0.00018884,2]
[335192380,1723967445359,-500.0,0.00018884,2]
[335192381,1723967445368,-508.68572364,0.00018884,2]
[335192382,1723967445378,-1004.86,0.00018884,2]
[335192383,1723967445388,-500.0,0.00018884,2]
[335192384,1723967445398,-500.0,0.00018884,2]
[335192385,1723967445410,-599.68333757,0.00018884,2]
[335192386,1723967445421,-500.0,0.00018884,2]
[335192387,1723967445432,-502.27307138,0.00018884,2]
[335192388,1723967445443,-505.25,0.00018884,2]
[335192389,1723967445453,-500.0,0.00018884,2]
[335192390,1723967445464,-500.0,0.00018884,2]
[335192391,1723967445474,-500.0,0.00018884,2]
[335192392,1723967445483,-511.28577531,0.00018884,2]
[335192393,1723967445492,-500.0,0.00018884,2]
[335192394,1723967445502,-500.0,0.00018884,2]
[335192395,1723967445512,-500.0,0.00018884,2]
[335192396,1723967445521,-500.0,0.00018884,2]
[335192397,1723967445532,-500.0,0.00018884,2]
[335192398,1723967445541,-500.0,0.00018884,2]
[335192399,1723967445551,-500.0,0.00018884,2]
[335192400,1723967445560,-501.3766439,0.00018884,2]
[335192401,1723967445569,-376.41422012,0.00018884,2]
[335192402,1723967445579,-500.0,0.00018884,2]
[335192403,1723967445588,-500.0,0.00018884,2]
[335192404,1723967445598,-500.0,0.00018884,2]
[335192405,1723967445607,-500.93919286,0.00018884,2]
[335192406,1723967445617,-611.95,0.00018884,2]
[335192407,1723967445626,-500.0,0.00018884,2]
[335192408,1723967445635,-500.0,0.00018884,2]
[335192409,1723967445645,-500.0,0.00018884,2]
[335192410,1723967445654,-327.78083474,0.00018884,2]
[335192411,1723967445663,-501.3363055,0.00018884,2]
[335192412,1723967445673,-500.0,0.00018884,2]
[335192413,1723967445683,-412.72989913,0.00018884,2]
[335192414,1723967445692,-502.35481281,0.00018884,2]
[335192415,1723967445702,-846.62,0.00018884,2]
[335192416,1723967445713,-500.0,0.00018884,2]
[335192417,1723967445722,-500.0,0.00018884,2]
[335192418,1723967445731,-500.0,0.00018884,2]
[335192419,1723967445741,-500.0,0.00018884,2]
[335192420,1723967445750,-554.44,0.00018884,2]
[335192421,1723967445759,-500.0,0.00018884,2]
[335192422,1723967445769,-833.19,0.00018884,2]
[335192423,1723967445778,-500.0,0.00018884,2]
[335192424,1723967445790,-500.0,0.00018884,2]
[335192425,1723967445801,-500.0,0.00018884,2]
[335192426,1723967445812,-500.0,0.00018884,2]
[335192427,1723967445822,-500.0,0.00018884,2]
[335192428,1723967445834,-500.0,0.00018884,2]
[335192429,1723967445844,-500.0,0.00018884,2]
[335192430,1723967445855,-500.0,0.00018884,2]
[335192431,1723967445864,-500.0,0.00018884,2]
[335192432,1723967445874,-500.0,0.00018884,2]
[335192433,1723967445885,-500.0,0.00018884,2]
[335192434,1723967445895,-500.0,0.00018884,2]
[335192435,1723967445906,-500.0,0.00018884,2]
[335192436,1723967445916,-500.0,0.00018884,2]
[335192437,1723967445926,-500.0,0.00018884,2]
[335192438,1723967445937,-500.0,0.00018884,2]
[335192439,1723967445947,-500.0,0.00018884,2]
[335192440,1723967445960,-500.0,0.00018884,2]
[335192441,1723967445969,-891.93,0.00018884,2]
[335192442,1723967445980,-500.0,0.00018884,2]
[335192443,1723967445989,-500.0,0.00018884,2]
[335192444,1723967446001,-500.0,0.00018884,2]
[335192445,1723967446012,-500.0,0.00018884,2]
[335192446,1723967446021,-500.0,0.00018884,2]
[335192447,1723967446030,-500.0,0.00018884,2]
[335192448,1723967446039,-500.0,0.00018884,2]
[335192449,1723967446049,-569.59,0.00018884,2]
[335192450,1723967446058,-500.0,0.00018884,2]
[335192452,1723967446067,-681.53,0.00018884,2]
[335192454,1723967446077,-500.0,0.00018884,2]
[335192456,1723967446086,-500.0,0.00018884,2]
[335192458,1723967446095,-500.0,0.00018884,2]
[335192459,1723967446104,-500.0,0.00018884,2]
[335192460,1723967446114,-500.0,0.00018884,2]
[335192461,1723967446123,-500.0,0.00018884,2]
[335192462,1723967446133,-500.0,0.00018884,2]
[335192463,1723967446142,-500.0,0.00018884,2]
[335192464,1723967446153,-528.20501556,0.00018884,2]
[335192465,1723967446164,-500.0,0.00018884,2]
[335192466,1723967446175,-600.04919493,0.00018884,2]
[335192467,1723967446186,-668.0,0.00018884,2]
[335192468,1723967446197,-500.0,0.00018884,2]
[335192469,1723967446206,-500.0,0.00018884,2]
[335192470,1723967446217,-500.0,0.00018884,2]
[335192471,1723967446226,-500.0,0.00018884,2]
[335192472,1723967446235,-552.51,0.00018884,2]
[335192473,1723967446244,-505.21419175,0.00018884,2]
[335192474,1723967446254,-500.0,0.00018884,2]
[335192475,1723967446263,-512.92510191,0.00018884,2]
[335192476,1723967446275,-506.52574685,0.00018884,2]
[335192477,1723967446284,-500.0,0.00018884,2]
[335192478,1723967446295,-500.0,0.00018884,2]
[335192479,1723967446306,-500.0,0.00018884,2]
[335192480,1723967446316,-1122.98,0.00018884,2]
[335192481,1723967446326,-500.0,0.00018884,2]
[335192482,1723967446336,-526.35,0.00018884,2]
[335192483,1723967446348,-500.0,0.00018884,2]
[335192484,1723967446359,-506.39878644,0.00018884,2]
[335192485,1723967446369,-859.38,0.00018884,2]
[335192486,1723967446378,-420.57219836,0.00018884,2]
[335192487,1723967446388,-500.0,0.00018884,2]
[335192488,1723967446397,-500.0,0.00018884,2]
[335192489,1723967446406,-500.0,0.00018884,2]
[335192490,1723967446420,-500.0,0.00018884,2]
[335192491,1723967446430,-500.0,0.00018884,2]
[335192493,1723967446439,-500.0,0.00018884,2]
[335192496,1723967446448,-500.0,0.00018884,2]
[335192498,1723967446459,-500.0,0.00018884,2]
[335192500,1723967446572,-500.0,0.00018884,2]
[335192501,1723967446585,-571.51223584,0.00018884,2]
[335192502,1723967446594,-560.05,0.00018884,2]
[335192504,1723967446603,-500.0,0.00018884,2]
[335192506,1723967446612,-511.96,0.00018884,2]
[335192508,1723967446622,-500.0,0.00018884,2]
[335192510,1723967446632,-500.0,0.00018884,2]
[335192511,1723967446641,-500.0,0.00018884,2]
[335192512,1723967446650,-500.0,0.00018884,2]
[335192514,1723967446660,-500.0,0.00018884,2]
[335192515,1723967446669,-878.09,0.00018884,2]
[335192516,1723967446679,-500.0,0.00018884,2]
[335192517,1723967446688,-657.28,0.00018884,2]
[335192518,1723967446697,-506.13685188,0.00018884,2]
[335192519,1723967446706,-500.0,0.00018884,2]
[335192521,1723967446715,-500.0,0.00018884,2]
[335192523,1723967446725,-500.0,0.00018884,2]
[335192524,1723967446735,-500.0,0.00018884,2]
[335192525,1723967446744,-418.11879524,0.00018884,2]
[335192526,1723967446753,-500.0,0.00018884,2]
[335192527,1723967446762,-500.0,0.00018884,2]
[335192529,1723967446771,-603.53,0.00018884,2]
[335192531,1723967446781,-500.0,0.00018884,2]
[335192532,1723967446790,-500.0,0.00018884,2]
[335192533,1723967446799,-500.0,0.00018884,2]
[335192534,1723967446808,-500.0,0.00018884,2]
[335192535,1723967446818,-514.32892992,0.00018884,2]
[335192536,1723967446828,-500.0,0.00018884,2]
[335192537,1723967446837,-500.0,0.00018884,2]
[335192538,1723967446847,-500.0,0.00018884,2]
[335192539,1723967446856,-500.0,0.00018884,2]
[335192540,1723967446865,-508.52900798,0.00018884,2]
[335192541,1723967446874,-890.33,0.00018884,2]
[335192542,1723967446883,-500.0,0.00018884,2]
[335192543,1723967446892,-500.0,0.00018884,2]
[335192544,1723967446901,-500.0,0.00018884,2]
[335192545,1723967446921,-500.0,0.00018884,2]
[335192546,1723967446931,-500.0,0.00018884,2]
[335192547,1723967446940,-417.33335301,0.00018884,2]
[335192548,1723967446950,-500.0,0.00018884,2]
[335192549,1723967446960,-500.0,0.00018884,2]
[335192550,1723967446974,-500.0,0.00018884,2]
[335192551,1723967446984,-2005.0,0.00018884,10]
[335192552,1723967446993,-227.43037198,0.00018884,2]
[335192553,1723967447003,-500.0,0.00018884,2]
[335192554,1723967447013,-500.0,0.00018884,2]
[335192555,1723967447022,-500.0,0.00018884,2]
[335192556,1723967447032,-812.9,0.00018884,2]
[335192557,1723967447041,-500.0,0.00018884,2]
[335192558,1723967447050,-886.54,0.00018884,2]
[335192559,1723967447060,-500.0,0.00018884,2]
[335192560,1723967447070,-500.0,0.00018884,2]
[335192561,1723967447080,-500.0,0.00018884,2]
[335192562,1723967447090,-500.0,0.00018884,2]
[335192563,1723967447100,-500.0,0.00018884,2]
[335192564,1723967447109,-310.52583152,0.00018884,2]
[335192565,1723967447119,-500.0,0.00018884,2]
[335192566,1723967447129,-625.62,0.00018884,2]
[335192567,1723967447138,-500.0,0.00018884,2]
[335192568,1723967447147,-500.0,0.00018884,2]
[335192569,1723967447158,-500.0,0.00018884,2]
[335192570,1723967447168,-923.35,0.00018884,2]
[335192571,1723967447178,-1719.68,0.00018884,2]
[335192572,1723967447190,-500.0,0.00018884,2]
[335192573,1723967447204,-500.0,0.00018884,2]
[335192574,1723967447217,-500.0,0.00018884,2]
[335192575,1723967447228,-500.0,0.00018884,2]
[335192576,1723967447238,-500.0,0.00018884,2]
[335192577,1723967447247,-500.0,0.00018884,2]
[335192578,1723967447257,-500.0,0.00018884,2]
[335192579,1723967447268,-500.0,0.00018884,2]
[335192580,1723967447279,-500.0,0.00018884,2]
[335192581,1723967447293,-501.57361416,0.00018884,2]
[335192582,1723967447304,-500.0,0.00018888,2]
[335192583,1723967447313,-500.0,0.00018888,2]
[335192584,1723967447323,-500.0,0.00018888,2]
[335192585,1723967447335,-500.0,0.00018888,2]
[335192586,1723967447347,-500.0,0.00018888,2]
[335192587,1723967447359,-500.0,0.00018888,2]
[335192588,1723967447370,-500.0,0.00018888,2]
[335192589,1723967447380,-500.0,0.00018888,2]
[335192590,1723967447392,-150.112233,0.000189,2]
[335192591,1723967447406,-723.22,0.00018977,2]
[335192592,1723967447421,-651.31,0.00018977,2]
[335192593,1723967447431,-3113.04,0.00018977,2]
[335192594,1723967447441,-982.59,0.00018977,2]
[335192595,1723967447452,-818.72,0.00018977,2]
[335192596,1723967447464,-1035.0,0.00018977,2]
[335192597,1723967447473,-500.0,0.00018977,2]
[335192598,1723967447483,-500.0,0.00018977,2]
[335192599,1723967447492,-500.0,0.00018977,2]
[335192600,1723967447502,-891.72,0.00018977,2]
[335192601,1723967447511,-500.0,0.00018977,2]
[335192602,1723967447521,-500.0,0.00018977,2]
[335192603,1723967447530,-926.77,0.00018977,2]
[335192604,1723967447540,-500.0,0.0001898,2]
[335192605,1723967447549,-500.0,0.0001898,2]
[335192606,1723967447559,-500.0,0.0001898,2]
[335192607,1723967447568,-500.0,0.0001898,2]
[335192608,1723967447577,-500.0,0.0001898,2]
[335192609,1723967447587,-553.71,0.0001898,2]
[335192610,1723967447597,-500.0,0.00018999,2]
[335192611,1723967447607,-150.112233,0.00019,2]
[335192612,1723967447616,-150.112233,0.00019,2]
[335192613,1723967447626,-158.036931,0.00019,2]
[335192614,1723967447635,-500.0,0.00019018,2]
[335192615,1723967447646,-17674.93,0.0001904,2]
[335192616,1723967447657,-17674.93,0.0001904,2]
[335192617,1723967447667,-17674.93,0.0001904,2]
[335192618,1723967447677,-17674.93,0.0001904,2]
[335192619,1723967447689,-17674.96121939,0.0001904,2]
[335192620,1723967447700,-642458.87938956,0.0001904,2]
[335192621,1723967448161,-13130.22822384,0.0001904,2]
[335192622,1723967448374,-757.94,0.00018778,2]
[335192623,1723967448384,-1818.85679315,0.0001904,2]
[335192624,1723967448399,-470795.62261847,0.0001904,2]
[335192625,1723967449082,-3312.36177032,0.0001904,2]
[335192626,1723967490035,90.28622049,0.00014519,2]
[335192627,1723967490060,161.78908241,0.00014519,2]
[335192628,1723967540396,-368.243206,0.00017736,2]
[335192629,1723967555902,-170.60372455,0.00017598,2]
[335192630,1723967561504,-187.27888222,0.00017598,2]
[335192631,1723967619993,159.144248,0.00014247,2]
[335192632,1723967626881,-1098.8858005,0.00017726,2]
[335192636,1723967752769,-351.18182,0.00016986,2]
[335192637,1723967770717,-250.0,0.00017842,2]
[335192639,1723967772526,-250.0,0.00017891,2]
[335192640,1723967773267,-250.0,0.0001794,2]
[335192641,1723967779897,-250.0,0.00017989,2]
[335192648,1723968042601,-184.121603,0.0001749,2]
[335192652,1723968087249,188.156964,0.00014247,2]
[335192658,1723968227248,-250.0,0.00017692,2]
[335192659,1723968229705,-250.0,0.0001774,2]
[335192660,1723968231193,-250.0,0.00017789,2]
[335192661,1723968231984,-250.0,0.00017837,2]
[335192662,1723968232688,-250.0,0.00017886,2]
[335192663,1723968233349,-250.0,0.00017934,2]
[335192664,1723968244394,-333.622729,0.00016986,2]
[335192670,1723968397015,169.30041245,0.00015001,2]
[335192671,1723968399157,-158.11812639,0.00017983,2]
[335192673,1723968403770,-245.0,0.000169,2]
[335192674,1723968412216,181.90118475,0.00015001,2]
[335192676,1723968429298,-91.88187361,0.00017983,2]
[335192677,1723968429322,-250.0,0.00018031,2]
[335192678,1723968429343,-250.0,0.0001808,2]
[335192679,1723968429365,-250.0,0.00018128,2]
[335192680,1723968429388,-250.0,0.00018177,2]
[335192681,1723968429409,-223.38199524,0.00018183,2]
[335192682,1723968429431,-572.20200054,0.00018183,2]
[335192683,1723968433134,-1264.06398841,0.00018183,2]
[335192684,1723968438339,-884.93778721,0.00018183,2]
[335192685,1723968438360,-95.4644859,0.00018183,2]
[335192686,1723968440036,-191.9731999,0.00017883,2]
[335192687,1723968441101,-326.6539169,0.00018183,2]
[335192688,1723968441126,-983.38610082,0.00018183,2]
[335192689,1723968441149,-154.79103211,0.00018183,2]
[335192690,1723968441172,-155.32296161,0.00018183,2]
[335192691,1723968441194,-563.51991445,0.00018183,2]
[335192692,1723968441225,-246.59508145,0.00018183,2]
[335192693,1723968441246,-200.59987483,0.00018183,2]
[335192694,1723968441269,-205.33031435,0.00018225,2]
[335192705,1723968530037,-191.4359,0.00017496,2]
[335192714,1723968590313,154.90471259,0.00014247,2]
[335192715,1723968590344,4.97074441,0.00014247,2]
[335192734,1723968631797,-232.5311694,0.00018083,2]
[335192736,1723968631807,-44.66968565,0.00018225,2]
[335192738,1723968631816,-250.0,0.00018274,2]
[335192740,1723968631826,-126.6463232,0.00018322,2]
[335192773,1723968637760,-123.3536768,0.00018322,2]
[335192775,1723968637770,-295.0138388,0.00018329,2]
[335192777,1723968637780,-250.0,0.00018371,2]
[335192779,1723968637790,-245.42393822,0.000184,2]
[335192781,1723968637802,-49.58990058,0.000184,2]
[335192783,1723968637811,-295.0138388,0.000184,2]
[335192785,1723968637820,-292.8755062,0.000184,2]
[335192787,1723968637829,-200.2660357,0.000184,2]
[335192789,1723968637838,-250.0,0.00018419,2]
[335192791,1723968637847,-300.0,0.00018461,2]
[335192793,1723968637856,-300.0,0.00018467,2]
[335192795,1723968637865,-250.0,0.00018468,2]
[335192797,1723968637876,-295.0138388,0.000185,2]
[335192799,1723968637885,-295.0138388,0.000185,2]
[335192801,1723968637895,-250.0,0.00018516,2]
[335192803,1723968637904,-250.0,0.00018565,2]
[335192805,1723968637913,-206.8455943,0.00018575,2]
[335192807,1723968637922,-893.81319534,0.00018601,2]
[335192809,1723968637931,-250.0,0.00018613,2]
[335192811,1723968637941,-511.42,0.00018657,3]
[335192813,1723968637951,-255.71,0.00018657,3]
[335192815,1723968637964,-767.17,0.00018657,3]
[335192817,1723968637973,-711.95,0.00018665,2]
[335192819,1723968637983,-500.0,0.00018665,2]
[335192821,1723968637992,-500.0,0.00018665,2]
[335192823,1723968638003,-8011.53,0.00018665,2]
[335192825,1723968638012,-693.08,0.00018665,2]
[335192828,1723968638022,-500.0,0.00018665,2]
[335192845,1723968638174,-1370.85,0.00018665,2]
[335192847,1723968638184,-500.0,0.00018665,2]
[335192849,1723968638194,-624.17,0.00018665,2]
[335192851,1723968638204,-894.98,0.00018665,2]
[335192853,1723968638214,-2983.33,0.00018665,2]
[335192855,1723968638223,-941.65,0.00018665,2]
[335192857,1723968638232,-482.46625134,0.00018665,2]
[335192859,1723968638242,-784.6,0.00018665,2]
[335192861,1723968638253,-2306.99,0.00018665,2]
[335192863,1723968638263,-500.0,0.00018665,2]
[335192865,1723968638272,-500.0,0.00018665,2]
[335192867,1723968638282,-500.0,0.00018665,2]
[335192869,1723968638292,-1013.54,0.00018665,2]
[335192871,1723968638302,-991.87,0.00018665,2]
[335192873,1723968638312,-500.0,0.00018665,2]
[335192876,1723968638321,-854.57,0.00018665,2]
[335192878,1723968638331,-976.75,0.00018665,2]
[335192880,1723968638341,-566.55546908,0.00018665,2]
[335192882,1723968638351,-500.0,0.00018665,2]
[335192884,1723968638361,-500.0,0.00018665,2]
[335192886,1723968638371,-500.0,0.00018665,2]
[335192888,1723968638380,-500.0,0.00018665,2]
[335192890,1723968638390,-500.0,0.00018665,2]
[335192892,1723968638400,-500.0,0.00018665,2]
[335192894,1723968638410,-500.0,0.00018665,2]
[335192896,1723968638421,-500.0,0.00018665,2]
[335192898,1723968638430,-500.0,0.00018665,2]
[335192900,1723968638440,-500.0,0.00018665,2]
[335192902,1723968638449,-500.0,0.00018665,2]
[335192904,1723968638461,-500.0,0.00018665,2]
[335192906,1723968638471,-500.0,0.00018665,2]
[335192908,1723968638481,-500.0,0.00018666,2]
[335192910,1723968638490,-4418.73,0.00018666,2]
[335192912,1723968638500,-888.16,0.00018666,2]
[335192914,1723968638510,-500.0,0.00018666,2]
[335192916,1723968638520,-1335.83,0.00018666,2]
[335192918,1723968638530,-500.0,0.00018666,2]
[335192921,1723968638540,-1567.7,0.00018666,2]
[335192923,1723968638551,-1397.9,0.00018666,2]
[335192925,1723968638562,-500.0,0.00018666,2]
[335192927,1723968638572,-256.71266085,0.00018666,2]
[335192929,1723968638582,-1305.11,0.00018666,2]
[335192931,1723968638591,-5368.24,0.00018666,2]
[335192933,1723968638601,-861.01,0.00018666,2]
[335192935,1723968638611,-1523.53,0.00018666,2]
[335192937,1723968638621,-1259.82,0.00018666,2]
[335192939,1723968638631,-500.0,0.00018666,2]
[335192941,1723968638641,-639.48,0.00018666,2]
[335192943,1723968638650,-500.0,0.00018666,2]
[335192945,1723968638660,-500.0,0.00018666,2]
[335192947,1723968638669,-500.0,0.00018666,2]
[335192949,1723968638680,-2068.8,0.00018666,2]
[335192951,1723968638689,-525.36014816,0.00018666,2]
[335192953,1723968638699,-1527.5,0.00018666,2]
[335192955,1723968638709,-500.0,0.00018666,2]
[335192958,1723968638719,-500.0,0.00018666,2]
[335192960,1723968638728,-500.0,0.00018666,2]
[335192962,1723968638738,-500.0,0.00018666,2]
[335192964,1723968638747,-500.0,0.00018666,2]
[335192966,1723968638757,-500.0,0.00018666,2]
[335192968,1723968638767,-623.92,0.00018666,2]
[335192970,1723968638776,-1209.28,0.00018666,2]
[335192972,1723968638786,-500.0,0.00018666,2]
[335192974,1723968638795,-1106.97,0.00018666,2]
[335192976,1723968638805,-951.59,0.00018666,2]
[335192978,1723968638814,-500.0,0.00018666,2]
[335192980,1723968638823,-500.0,0.00018666,2]
[335192982,1723968638833,-701.97,0.00018666,2]
[335192984,1723968638843,-500.0,0.00018666,2]
[335192986,1723968638852,-500.0,0.00018666,2]
[335192988,1723968638862,-500.0,0.00018666,2]
[335192990,1723968638871,-500.0,0.00018666,2]
[335192992,1723968638880,-987.84,0.00018666,2]
[335192994,1723968638890,-500.0,0.00018666,2]
[335192996,1723968638899,-777.46,0.00018666,2]
[335192998,1723968638909,-526.97,0.00018666,2]
[335193000,1723968638918,-79952.4810226,0.00018667,2]
[335193003,1723968638928,-4418.73,0.00018676,2]
[335193005,1723968638937,-4418.73,0.00018676,2]
[335193007,1723968638946,-88888.0,0.00018677,2]
[335193009,1723968638955,-4418.73,0.0001869,2]
[335193011,1723968638965,-4418.73,0.0001869,2]
[335193013,1723968638978,-39976.2405113,0.0001869,2]
[335193015,1723968638987,-4418.73,0.00018691,2]
[335193017,1723968638997,-119928.721534,0.00018691,2]
[335193019,1723968639007,-39976.2405113,0.00018692,2]
[335193021,1723968639016,-4418.73,0.00018692,2]
[335193023,1723968639026,-4418.73,0.000187,2]
[335193025,1723968639035,-4418.73,0.000187,2]
[335193027,1723968639044,-4418.73,0.000187,2]
[335193029,1723968639054,-500.0,0.00018701,2]
[335193031,1723968639063,-466.80532712,0.00018701,2]
[335193033,1723968639073,-500.0,0.00018701,2]
[335193035,1723968639082,-500.0,0.00018701,2]
[335193037,1723968639091,-500.0,0.00018701,2]
[335193039,1723968639101,-500.0,0.00018701,2]
[335193042,1723968639111,-167.27726661,0.00018701,2]
[335193044,1723968639120,-500.0,0.00018701,2]
[335193046,1723968639129,-500.0,0.00018701,2]
[335193048,1723968639139,-500.0,0.00018701,2]
[335193050,1723968639148,-500.0,0.00018701,2]
[335193052,1723968639158,-500.0,0.00018701,2]
[335193054,1723968639167,-501.93888408,0.00018701,2]
[335193056,1723968639176,-500.0,0.00018701,2]
[335193058,1723968639185,-500.0,0.00018701,2]
[335193060,1723968639195,-1161.74,0.00018701,2]
[335193062,1723968639204,-500.0,0.00018701,2]
[335193064,1723968639213,-500.0,0.00018701,2]
[335193066,1723968639222,-500.0,0.00018701,2]
[335193068,1723968639232,-506.83744732,0.00018701,2]
[335193070,1723968639241,-500.0,0.00018701,2]
[335193072,1723968639251,-500.0,0.00018701,2]
[335193074,1723968639260,-526.31895576,0.00018701,2]
[335193076,1723968639270,-500.0,0.00018701,2]
[335193078,1723968639279,-500.0,0.00018701,2]
[335193080,1723968639288,-500.0,0.00018701,2]
[335193082,1723968639297,-504.08150754,0.00018701,2]
[335193084,1723968639306,-759.84,0.00018701,2]
[335193086,1723968639316,-500.0,0.00018701,2]
[335193088,1723968639324,-500.0,0.00018701,2]
[335193090,1723968639334,-509.52675706,0.00018701,2]
[335193092,1723968639344,-500.0,0.00018701,2]
[335193094,1723968639353,-503.26337526,0.00018701,2]
[335193096,1723968639363,-503.93529281,0.00018701,2]
[335193098,1723968639372,-500.0,0.00018701,2]
[335193100,1723968639380,-573.53,0.00018701,2]
[335193102,1723968639390,-150.0,0.00018701,2]
[335193104,1723968639399,-500.0,0.00018701,2]
[335193106,1723968639409,-595.18,0.00018701,2]
[335193107,1723968639418,-500.0,0.00018701,2]
[335193108,1723968639427,-500.0,0.00018701,2]
[335193109,1723968639437,-500.0,0.00018701,2]
[335193110,1723968639446,-500.0,0.00018701,2]
[335193111,1723968639456,-500.0,0.00018701,2]
[335193112,1723968639465,-500.0,0.00018701,2]
[335193113,1723968639474,-200.0,0.00018701,2]
[335193114,1723968639484,-500.0,0.00018701,2]
[335193115,1723968639494,-500.0,0.00018701,2]
[335193116,1723968639503,-500.0,0.00018701,2]
[335193117,1723968639513,-511.4219011,0.00018701,2]
[335193118,1723968639523,-500.0,0.00018701,2]
[335193119,1723968639532,-500.0,0.00018701,2]
[335193120,1723968639542,-500.0,0.00018701,2]
[335193122,1723968639551,-506.76095318,0.00018701,2]
[335193124,1723968639560,-594.93,0.00018701,2]
[335193126,1723968639569,-510.71652448,0.00018701,2]
[335193127,1723968639579,-500.0,0.00018701,2]
[335193128,1723968639588,-500.0,0.00018701,2]
[335193129,1723968639597,-645.52102326,0.00018701,2]
[335193130,1723968639607,-500.0,0.00018701,2]
[335193131,1723968639617,-507.97641047,0.00018701,2]
[335193132,1723968639627,-686.22,0.00018701,2]
[335193133,1723968639637,-500.0,0.00018701,2]
[335193134,1723968639646,-500.0,0.00018701,2]
[335193135,1723968639656,-500.0,0.00018701,2]
[335193137,1723968639666,-500.0,0.00018701,2]
[335193139,1723968639675,-514.17707633,0.00018701,2]
[335193140,1723968639684,-505.39570804,0.00018701,2]
[335193141,1723968639693,-515.67634002,0.00018701,2]
[335193142,1723968639702,-511.00844892,0.00018701,2]
[335193143,1723968639712,-500.0,0.00018701,2]
[335193145,1723968639722,-500.0,0.00018701,2]
[335193146,1723968639731,-500.0,0.00018701,2]
[335193147,1723968639741,-461.50916637,0.00018701,2]
[335193148,1723968639750,-494.2044068,0.00018701,2]
[335193149,1723968639759,-500.0,0.00018701,2]